Cogmind - Beta 13 @@@ ROGUE MODE // 2024.04.03 @ 12:07:41 Player: SovietPaperclip Result: Smashed by cave-in Performance ------------- Evolutions (0) 0 Regions Visited (1) 200 Robots Destroyed (19) 95 Value Destroyed (317) 317 Prototype IDs (2) 40 Alien Tech Used (0) 0 Bonus (0) 0 TOTAL SCORE: 652 Bonus ------- None Cogmind --------- Core Integrity 0/250 Matter 202/300 Energy 100/100 System Corruption 5% Temperature Warm (180) Movement Core (200) Ox3 Location -10/Materials Parts ------- > --- POWER (1) -------- (None) > --- PROPULSION (2) --- (None) > --- UTILITY (2) ------ Small Storage Unit Light Armor Plating > --- WEAPON (2) ------- Improved Light Cannon > --- INVENTORY (8) ---- Improved Ion Engine High-capacity Storage Unit High-capacity Matter Pod (4) Weight Redist. System Improved Light Cannon Peak State ------------ > --- POWER ------------ Improved Ion Engine > --- PROPULSION ------- Aluminum Leg Aluminum Leg > --- UTILITY ---------- Small Storage Unit > --- WEAPON ----------- Improved Light Cannon Improved Light Cannon > --- INVENTORY -------- Improved Ion Engine Improved Ion Engine High-capacity Matter Pod Weight Redist. System Improved Light Cannon Improved Light Cannon [Rating: 10] Favorites ----------- Power Improved Ion Engine Engine Improved Ion Engine Propulsion Aluminum Leg Leg Aluminum Leg Utility Small Storage Unit Storage Small Storage Unit Protection Light Armor Plating Weapon Improved Light Cannon Energy Gun Small Laser Ballistic Cannon Improved Light Cannon Build | -11 -10 ------- Run | Yrd Mat Slots Evolved . | . . Power . | . . Propulsion . | . . Utility . | . . Weapon . | . . Parts Attached 12 | 6 6 Power 3 | 1 2 Engine 3 | 1 2 Core . | . . Reactor . | . . Propulsion 2 | 2 . Treads . | . . Leg 2 | 2 . Wheel . | . . Hover . | . . Flight . | . . Utility 2 | 1 1 Device . | . . Storage 1 | 1 . Processor . | . . Hackware . | . . Protection 1 | . 1 Artifact . | . . Weapon 5 | 2 3 Energy Gun 2 | 2 . Energy Cannon . | . . Ballistic Gun . | . . Ballistic Cannon 3 | . 3 Launcher . | . . Special Weapon . | . . Impact Weapon . | . . Slashing Weapon . | . . Piercing Weapon . | . . Special Melee Weapon . | . . Unidentified Prototypes . | . . Parts Lost 6 | . 6 Power 2 | . 2 Propulsion 2 | . 2 Utility . | . . Weapon 2 | . 2 Highest Loss Streak 6 | . 6 To Critical Strikes . | . . Average Slot Usage (%) 80 | . 80 Engine 12 | . 12 Leg 25 | . 25 Storage 14 | . 14 Energy Gun 3 | . 3 Ballistic Cannon 23 | . 23 Naked Turns . | . . Heaviest Build 23 | 10 23 Greatest Support 20 | 20 20 Greatest Overweight (x) 7 | . 7 Average Overweight (x) . | . . Largest Inventory Capacity 8 | 8 8 Average Capacity 7 | 6 8 Most Carried 8 | 5 8 Average Carried 5 | 1 6 Final Capacity 8 | 8 8 Final Carried 5 | 1 5 Class Distribution -------------------- 100% | Mutant Dominant Class ---------------- Mutant | -10/Materials Resources | -11 -10 ----------- Run | Yrd Mat Matter Collected 540 | 225 315 Remotely . | . . Salvage Created 309 | . 309 Parts 28 | . 28 Haulers Intercepted . | . . Recyclers Shooed 1 | . 1 Parts Field Recycled . | . . Retrieved Matter . | . . Parts Self-Destructed . | . . Prevented . | . . Kills | -11 -10 ------- Run | Yrd Mat Combat Hostiles Destroyed 11 | . 11 Cannons 11 | . 11 Classes Destroyed 7 | . 7 Worker 2 | . 2 Builder 2 | . 2 Tunneler 1 | . 1 Recycler 1 | . 1 Operator 2 | . 2 Swarmer 6 | . 6 Grunt 5 | . 5 Best Kill Streak 11 | . 11 Combat Bots Only 4 | . 4 Max Kills in Single Turn 2 | . 2 Gunslinging . | . . Exploded . | . . Melee . | . . Uniques/NPCs Destroyed . | . . Combat | -11 -10 -------- Run | Yrd Mat Hostile Shots Fired 103 | . 103 Missed 17 | . 17 Damage Taken 1068 | . 1068 Core 263 | . 263 Absorbed by Shields . | . . Core Remaining (%) 100 | 100 . Volleys Fired 45 | . 45 Largest 2 | . 2 Hottest 80 | . 80 Shots Fired 90 | . 90 Gun 4 | . 4 Cannon 86 | . 86 Launcher . | . . Special . | . . Kinetic 86 | . 86 Thermal 4 | . 4 Explosive . | . . Electromagnetic . | . . Robot Hit Streak 5 | . 5 Robot Miss Streak 5 | . 5 Penetration Max . | . . Secondary Targets . | . . Shots Hit Robots 36 | . 36 Core Hits 20 | . 20 Critical Kills . | . . Critical Parts Destroyed . | . . Critical Strikes 1 | . 1 Blast 1 | . 1 Melee Attacks . | . . Impact . | . . Slashing . | . . Piercing . | . . Sneak Attacks . | . . Combat Hostiles . | . . Follow-up Attacks . | . . Damage Inflicted 833 | . 833 Guns 22 | . 22 Cannons 811 | . 811 Explosions . | . . Melee . | . . Ramming . | . . Kinetic 811 | . 811 Thermal 22 | . 22 Explosive . | . . Electromagnetic . | . . Impact . | . . Slashing . | . . Piercing . | . . Highest Corruption . | . . Average Corruption . | . . Corruption Purged . | . . Corruption Blocked . | . . Overload Shots . | . . Overflow Damage 9 | . 9 Projectiles 9 | . 9 Explosions . | . . Melee . | . . Knockbacks 15 | . 15 Impact . | . . Kinetic 12 | . 12 Secondary 3 | . 3 Self-Inflicted Damage . | . . Shots . | . . Rammed . | . . Targets Rammed . | . . Kicked . | . . Crushed . | . . Highest Temperature 255 | . 255 Average Temperature 105 | . 105 Received Heat Transfer 18 | . 18 Effects 1 | . 1 Energy Bleed 1 | . 1 Siege Activations . | . . Robots Corrupted . | . . Combat Hostiles . | . . Parts Fried . | . . Impact Corruptions . | . . Robots Melted . | . . Combat Hostiles . | . . Parts Melted . | . . Heat Transferred 50 | . 50 Parts Sabotaged . | . . Parts Stolen . | . . Parts Stripped . | . . Power Chain Reactions . | . . Alert | -11 -10 ------- Run | Yrd Mat Peak Influence 376 | . 376 Initial . | . . Average 120 | . 138 Maximum Alert Level 1 | . 1 Low Security (%) 65 | 100 60 Level 1 34 | . 39 Level 2 . | . . Level 3 . | . . Level 4 . | . . Level 5 . | . . High Security . | . . Max Security . | . . Squads Dispatched 1 | . 1 Investigation . | . . Extermination . | . . Reinforcement 1 | . 1 Assault . | . . Garrison . | . . Intercept . | . . Searches Triggered . | . . Construction Impeded . | . . Haulers Reinforced . | . . Active Scanning Responses . | . . Cargo Convoy Interrupts . | . . Stealth | -11 -10 --------- Run | Yrd Mat Distress Signals . | . . Communications Jammed . | . . Distress Signals . | . . Times Spotted 19 | . 19 Peak Tracking Total 4 | . 4 Tactical Retreats 2 | . 2 Traps | -11 -10 ------- Run | Yrd Mat Traps Triggered . | . . Indirectly . | . . Trap Hack Attempts . | . . Triggered . | . . Disarmed . | . . Reprogrammed . | . . Reused . | . . Traps Extracted . | . . Installed . | . . Triggered . | . . Machines | -11 -10 ---------- Run | Yrd Mat Machines Disabled 3 | . 3 Max in Single Turn 1 | . 1 Machines Repaired . | . . Machines Dismantled . | . . Machines Sabotaged . | . . Overloaded Fab Kills . | . . Hacking | -11 -10 --------- Run | Yrd Mat Machines Accessed 1 | . 1 Terminals 1 | . 1 Fabricators . | . . Repair Stations . | . . Recycling Units . | . . Scanalyzers . | . . Garrison Access . | . . Total Hacks 3 | . 3 Successful 2 | . 2 Failed 1 | . 1 Catastrophic . | . . Database Lockouts . | . . Manual . | . . Terminals 3 | . 3 Fabricators . | . . Repair Stations . | . . Recycling Units . | . . Scanalyzers . | . . Garrison Access . | . . Terminal Hacks 2 | . 2 Prototype ID Bank 1 | . 1 Dispatch Records 1 | . 1 Fabricator Hacks . | . . Repair Station Hacks . | . . Recycling Unit Hacks . | . . Scanalyzer . | . . Garrison Access Hacks . | . . Unauthorized Hacks . | . . Terminals . | . . Fabricators . | . . Repair Stations . | . . Recycling Units . | . . Scanalyzers . | . . Garrison Access . | . . Data Cores Recovered 1 | . 1 Used 1 | . 1 Hacking Detections . | . . Full Trace Events . | . . Feedback Events . | . . Feedback Blocked . | . . Robot Schematics Acquired . | . . Robots Built . | . . Authchips . | . . Time . | . . Total Robot Build Rating . | . . Part Schematics Acquired . | . . Parts Built . | . . Authchips . | . . Time . | . . Total Part Build Rating . | . . Parts Repaired . | . . Time . | . . Parts Recycled . | . . Recycled Matter . | . . Retrieved Matter . | . . Retrieved Components . | . . Parts Scanalyzed . | . . Part Schematics Acquired . | . . Parts Damaged . | . . Bothacking | -11 -10 ------------ Run | Yrd Mat Used RIF Installer . | . . Robots Hacked . | . . Non-combat . | . . Combat . | . . Robot Hacks Applied . | . . Relay Couplers Released . | . . Fabnet Peak Effective % . | . . Robots Rewired . | . . Allies Hacked . | . . Hacks Repelled . | . . Allies | -11 -10 -------- Run | Yrd Mat Total Allies . | . . Largest Group . | . . Highest-Rated Group . | . . Highest-Rated Ally . | . . Total Orders . | . . Ally Attacks . | . . Total Damage . | . . Kills . | . . Allies Corrupted . | . . Allies Melted . | . . Intel | -11 -10 ------- Run | Yrd Mat Robot Analysis Total . | . . Derelict Logs Recovered . | . . Drone Launches . | . . Drone Recoveries . | . . Exploration | -11 -10 ------------- Run | Yrd Mat Turns Passed 411 | 54 357 Spaces Moved 200 | 42 158 Core 18 | 17 1 Treads . | . . Legs 182 | 25 157 Wheels . | . . Hover . | . . Flight . | . . Fastest Speed 50 | 50 120 Average Speed 115 | 91 121 Slowest Speed 400 | 120 400 Overloaded Moves . | . . Propulsion Burnouts . | . . Robots Hopped . | . . Cave-ins Triggered 1 | . 1 Exploration Rate (%) 20 | 3 37 Regions Visited 1 Branch Regions . Pre-discovered Areas . | . . Known Exits Taken . | . . Unknown Exits Taken 1 | 1 . Scrap Searched . | . . Spaces Dug . | . . Terrain Destroyed 4 | . 4 Melee . | . . Projectile 4 | . 4 AOE . | . . Terrain Rammed . | . . Walls Destroyed . | . . Machines Disabled . | . . Actions | -11 -10 --------- Run | Yrd Mat Total 296 | 58 238 Wait 12 | . 12 Move 199 | 41 158 Hop . | . . Pick Up 21 | 9 12 Fast Attach . | . . Attach 12 | 6 6 Detach . | . . Swap . | . . Drop 7 | 2 5 Fire 45 | . 45 Melee . | . . Ram . | . . Kick . | . . Crush . | . . Escape Stasis . | . . Rewire . | . . Trap . | . . Miscellaneous . | . . Route ------- -11/Scrapyard -10/Materials (discovered 1 exit: [*Min]) History --------- Turn | Location | Event 7 | -11/Scrapyard | Discovered new exit (range 15) 55 | -11/Scrapyard | Entered Materials 304 | -10/Materials | Build established: Mutant 330 | -10/Materials | Discovered new exit (range 16) 413 | -10/Materials | Crushed by falling debris 413 | -10/Materials | Smashed by cave-in Last Messages --------------- 00385_ Aluminum Leg destroyed. 00387_ G-34 Mercenary destroyed. 00390_ Destroyed Flight Unit. 00392_ Imp. Ion Engine destroyed. 00393_ Matter Filter disabled. 00396_ S-10 Pest destroyed. 00397_ R-06 Scavenger collects Aluminum Leg. 00399_ S-10 Pest destroyed. 00400_ R-06 Scavenger collects Flight Unit. 00402_ R-06 Scavenger collects Aluminum Leg. 00404_ R-06 Scavenger collects Flight Unit. 00404_ Acquired 38 matter. 00408_ R-06 Scavenger collects Lgt. Ion Engine. 00408_ Imp. Light Cannon destroyed. 00413_ The unstable cave ceiling collapses. 00413_ Crushed by falling debris. 00413_ Imp. Ion Engine destroyed. 00413_ System corrupted by crushing effect (+3). 00413_ Imp. Light Cannon destroyed. 00413_ System corrupted by crushing effect (+2). Map ----- +----------------------------------------------------+ | ????????????# ???????? | | ????????????# ???????? | | ????????????+ ##########+###### ???????? | | ????????????# #??# %% #? ????????? | | ????????????#% #??#""= """ +??? ?????????? | | ????????????# %#??#"Y%= """ ! #?????##?????????? | | ????????????# %!#??#""==**"" !#????##??????????? | | ????###+##### #??#!*!%* ! #??!"!""?????????? | | ????# #??#+############?"!"!" #????????? | | ????# #### ## ##### ###??????? | | ????# / % = ?????? | | ????# ####### < ?????? | | ????# #??##?# ?????? | | ????## """ #?????# ##### #????????? | | ?????# ^""" #?????#### ##????????????????????? | | ?????#!! """ #????????# #?????????????????????? | | ?????#!] ! ????????# #?????????????????????? | | ????????? #????????# #?????????????????????? | | ????????? """ #????????# #?????????????????????? | | ???????? """ ???####### #?????????????????????? | | ??????????""" ??? # #?????????????????????? | | ???????????? ???""""" # #?????????????????????? | | ???????????? ???""""" # ###???????????????????? | | ????????????####???""""" # %a#???????????????????? | | ?????????????????? """"" r% #???????????????????? | | ?????????????????? """""r@% %#???????????????????? | | ?????????????????? """"" # %%#???????????????????? | | ???????????????????""""% # #???????????????????? | | ??????????????????? % *# ss#???????????????????? | | ??????????????????#####;## #???????????????????? | | ??????????????????????# ? s ???????????????????? | | ??????????????????????# ? ??????????????????? | | ??????????????????????# ? ?????????????????? | | ?????????????????????? ? """ """????????????????? | | ?????????????????????? ?"""""""""???????????????? | | ?????????????????????? ? """??????????????????? | | ?????????????????????? ? ???????????????????????? | | ?????????????????????? ??????????????????????????? | | ????????????????????? ??????????????????????????? | | ????????????????????? ??????????????????????????? | | ??????????????????????#??????????????????????????? | | ?????????????????????????????????????????????????? | | ?????????????????????????????????????????????????? | | ?????????????????????????????????????????????????? | | ?????????????????????????????????????????????????? | | ?????????????????????????????????????????????????? | | ?????????????????????????????????????????????????? | | ?????????????????????????????????????????????????? | | | | | +----------------------------------------------------+ Best States ------------- Heat Dissipation 25 Energy Generation 12 Energy Capacity 265 Matter Stores 300 Matter Capacity 300 Sight Range 16 Terrain Scan Density 10 Armor Coverage 150 Evasion (%) 55 Item Schematics ----------------- None Robot Schematics ------------------ None Fabricated ------------ Nothing Alien Tech Used ----------------- None Achievements -------------- None Challenges ------------ None Game ------ Seed IntegrityHackingPit Manual? 0 Play Time 00:06:49 Cumulative 26.9 hours Start 2024.04.03 @ 11:57:03 End 2024.04.03 @ 12:07:41 Sessions 1 Manual Loads 0 Difficulty Rogue Special Mode None Game No. 39 Rogue 39 Adventurer 0 Explorer 0 Win Type - Total 1 Types 1/0/0/0/0/0/0/0/0 Lore% 18 Gallery% 21 Achievement% 23 Wizard Run 0 Options --------- Layout 1 ASCII 0 Keyboard 0 Movement Mouse Keybinds 0 Fullscreen 2 Font 32/Smallcaps Map View 50x40 Zoom Use 0% Tactical HUD 1 Map Filters NONE Filters NONE Steam 1 RUN: 65cfeb97-8523-49dd-82a5-88c864b689aa